[Event "Late-Titled-Tuesday-Blitz-July-09-2024"]
[Site "Chess.com"]
[Date "2024.07.09"]
[Round "9"]
[White "scandalgod"]
[Black "MetiForce"]
[Result "1/2-1/2"]
[WhiteElo "2683"]
[BlackElo "2910"]
[TimeControl "180+1"]
[EndTime "15:44:49 PDT"]
[Termination "Game drawn - insufficient material"]

1. d4 {[%clk 0:02:55.5]} 1... Nf6 {[%clk 0:03:00]} 2. c4 {[%clk 0:02:54.1]} 2...
g6 {[%clk 0:03:00.4]} 3. Nc3 {[%clk 0:02:53.2]} 3... d5 {[%clk 0:03:00.9]} 4.
Bg5 {[%clk 0:02:52.8]} 4... Ne4 {[%clk 0:03:00.8]} 5. Bh4 {[%clk 0:02:53.1]}
5... g5 {[%clk 0:02:57.4]} 6. Bg3 {[%clk 0:02:52.3]} 6... h5 {[%clk 0:02:52.8]}
7. Qd3 {[%clk 0:02:15]} 7... Nxc3 {[%clk 0:02:30.6]} 8. bxc3 {[%clk 0:02:12.1]}
8... h4 {[%clk 0:02:11.9]} 9. Be5 {[%clk 0:02:10.5]} 9... Rh6 {[%clk 0:02:12.5]}
10. h3 {[%clk 0:02:06.9]} 10... Nc6 {[%clk 0:02:06.7]} 11. Bh2 {[%clk
0:02:05.9]} 11... dxc4 {[%clk 0:02:05.3]} 12. Qxc4 {[%clk 0:02:00.1]} 12... Be6
{[%clk 0:02:05.5]} 13. Qb5 {[%clk 0:01:57.8]} 13... Qd7 {[%clk 0:01:58.7]} 14.
Nf3 {[%clk 0:01:52.9]} 14... g4 {[%clk 0:01:41.3]} 15. hxg4 {[%clk 0:01:50.7]}
15... Bxg4 {[%clk 0:01:41.8]} 16. e3 {[%clk 0:01:47.6]} 16... Bxf3 {[%clk
0:01:01.3]} 17. gxf3 {[%clk 0:01:45.5]} 17... Nd8 {[%clk 0:01:01.2]} 18. Bf4
{[%clk 0:01:38.3]} 18... Rh8 {[%clk 0:00:49.6]} 19. Qe5 {[%clk 0:01:31.3]} 19...
f6 {[%clk 0:00:43.9]} 20. Qxc7 {[%clk 0:01:30.1]} 20... Qxc7 {[%clk 0:00:43.8]}
21. Bxc7 {[%clk 0:01:30.1]} 21... Rc8 {[%clk 0:00:44.2]} 22. Bb5+ {[%clk
0:01:16.4]} 22... Kf7 {[%clk 0:00:43.1]} 23. Ba5 {[%clk 0:01:16.1]} 23... b6
{[%clk 0:00:31.1]} 24. Ba6 {[%clk 0:01:00.6]} 24... Rc7 {[%clk 0:00:29.2]} 25.
Bb4 {[%clk 0:01:00.2]} 25... Nc6 {[%clk 0:00:26.8]} 26. Ba3 {[%clk 0:00:49]}
26... Nb8 {[%clk 0:00:26.6]} 27. Bb5 {[%clk 0:00:37]} 27... Rxc3 {[%clk
0:00:26.4]} 28. Bb4 {[%clk 0:00:33.2]} 28... Rc7 {[%clk 0:00:25]} 29. Kd2 {[%clk
0:00:31.1]} 29... e6 {[%clk 0:00:17.8]} 30. Bxf8 {[%clk 0:00:26.2]} 30... Kxf8
{[%clk 0:00:18.7]} 31. Rac1 {[%clk 0:00:20.4]} 31... Rxc1 {[%clk 0:00:18.2]} 32.
Rxc1 {[%clk 0:00:20.4]} 32... h3 {[%clk 0:00:18.6]} 33. Rh1 {[%clk 0:00:20.3]}
33... h2 {[%clk 0:00:17.5]} 34. Ke2 {[%clk 0:00:19.4]} 34... a6 {[%clk
0:00:18.1]} 35. Bd3 {[%clk 0:00:19.3]} 35... b5 {[%clk 0:00:17]} 36. Kf1 {[%clk
0:00:19.5]} 36... Nc6 {[%clk 0:00:17.2]} 37. Kg2 {[%clk 0:00:18.9]} 37... Nb4
{[%clk 0:00:17.7]} 38. Bb1 {[%clk 0:00:18.7]} 38... Nd5 {[%clk 0:00:15.3]} 39.
a3 {[%clk 0:00:11.7]} 39... a5 {[%clk 0:00:15]} 40. Rxh2 {[%clk 0:00:10.4]}
40... Rxh2+ {[%clk 0:00:13.6]} 41. Kxh2 {[%clk 0:00:11.3]} 41... a4 {[%clk
0:00:08.2]} 42. Kg2 {[%clk 0:00:10.8]} 42... b4 {[%clk 0:00:06.5]} 43. axb4
{[%clk 0:00:10.7]} 43... Nxb4 {[%clk 0:00:07.4]} 44. f4 {[%clk 0:00:07.5]} 44...
a3 {[%clk 0:00:06.4]} 45. Kf3 {[%clk 0:00:07.2]} 45... a2 {[%clk 0:00:05.9]} 46.
Bxa2 {[%clk 0:00:07.4]} 46... Nxa2 {[%clk 0:00:06.8]} 47. f5 {[%clk 0:00:07.6]}
47... exf5 {[%clk 0:00:05.2]} 48. Kf4 {[%clk 0:00:07]} 48... Nc3 {[%clk
0:00:05.8]} 49. Kxf5 {[%clk 0:00:06.9]} 49... Kf7 {[%clk 0:00:06.1]} 50. e4
{[%clk 0:00:07.1]} 50... Ne2 {[%clk 0:00:05.8]} 51. e5 {[%clk 0:00:04.9]} 51...
Nxd4+ {[%clk 0:00:03.1]} 52. Ke4 {[%clk 0:00:05.2]} 52... Nc6 {[%clk 0:00:02.9]}
53. exf6 {[%clk 0:00:05.2]} 53... Kxf6 {[%clk 0:00:03.8]} 54. f4 {[%clk
0:00:05.4]} 54... Ne7 {[%clk 0:00:04.7]} 55. f5 {[%clk 0:00:05.7]} 55... Nxf5
{[%clk 0:00:05.6]} 1/2-1/2

[Event "Late-Titled-Tuesday-Blitz-July-09-2024"]
[Site "Chess.com"]
[Date "2024.07.09"]
[Round "9"]
[White "JunjiCol"]
[Black "mind1mover"]
[Result "0-1"]
[WhiteElo "2469"]
[BlackElo "2820"]
[TimeControl "180+1"]
[EndTime "15:44:49 PDT"]
[Termination "mind1mover won on time"]

1. e4 {[%clk 0:03:00.9]} 1... e5 {[%clk 0:03:00.1]} 2. Bc4 {[%clk 0:02:59.7]}
2... Nf6 {[%clk 0:02:57.2]} 3. d4 {[%clk 0:02:59.6]} 3... Nc6 {[%clk 0:02:43.5]}
4. Nf3 {[%clk 0:02:43]} 4... exd4 {[%clk 0:02:26.1]} 5. e5 {[%clk 0:02:42.7]}
5... d5 {[%clk 0:02:26.7]} 6. Bb5 {[%clk 0:02:42]} 6... Nd7 {[%clk 0:02:22.7]}
7. c3 {[%clk 0:02:24.8]} 7... Nb6 {[%clk 0:01:52.1]} 8. cxd4 {[%clk 0:02:21.8]}
8... Be7 {[%clk 0:01:48.8]} 9. Nc3 {[%clk 0:02:20]} 9... O-O {[%clk 0:01:47.7]}
10. Bd3 {[%clk 0:02:19.4]} 10... Bg4 {[%clk 0:01:41.1]} 11. Be3 {[%clk
0:02:11.5]} 11... f6 {[%clk 0:01:29.6]} 12. Qc2 {[%clk 0:02:10.4]} 12... f5
{[%clk 0:01:20.7]} 13. Ne2 {[%clk 0:01:32.9]} 13... Nb4 {[%clk 0:01:16.9]} 14.
Qd2 {[%clk 0:01:30.6]} 14... g5 {[%clk 0:01:10.4]} 15. a3 {[%clk 0:01:18.4]}
15... Nxd3+ {[%clk 0:01:06.7]} 16. Qxd3 {[%clk 0:01:19.3]} 16... f4 {[%clk
0:01:02]} 17. Bd2 {[%clk 0:01:15.8]} 17... Qd7 {[%clk 0:00:54]} 18. h4 {[%clk
0:01:12.6]} 18... Bf5 {[%clk 0:00:54.1]} 19. Qb3 {[%clk 0:01:12]} 19... g4
{[%clk 0:00:54.3]} 20. Nfg1 {[%clk 0:01:06.4]} 20... f3 {[%clk 0:00:38.5]} 21.
gxf3 {[%clk 0:01:05]} 21... Nc4 {[%clk 0:00:31.4]} 22. Bh6 {[%clk 0:00:55]}
22... Rf7 {[%clk 0:00:28.1]} 23. Ng3 {[%clk 0:00:46.2]} 23... Qe6 {[%clk
0:00:19.6]} 24. Bg5 {[%clk 0:00:35.9]} 24... Bf8 {[%clk 0:00:18.2]} 25. N1e2
{[%clk 0:00:33.9]} 25... gxf3 {[%clk 0:00:06.1]} 26. Nf4 {[%clk 0:00:33.8]}
26... Qc6 {[%clk 0:00:06.8]} 27. Rg1 {[%clk 0:00:27.2]} 27... Kh8 {[%clk
0:00:04.5]} 28. Ngh5 {[%clk 0:00:23.5]} 28... Be7 {[%clk 0:00:01.8]} 29. Nf6
{[%clk 0:00:16.4]} 29... Bxf6 {[%clk 0:00:01.5]} 30. Bxf6+ {[%clk 0:00:16.2]}
30... Rxf6 {[%clk 0:00:02.2]} 31. exf6 {[%clk 0:00:17.1]} 31... Re8+ {[%clk
0:00:03]} 32. Kd1 {[%clk 0:00:14.8]} 32... Qxf6 {[%clk 0:00:02.1]} 33. Qc3
{[%clk 0:00:12.9]} 33... Re4 {[%clk 0:00:02]} 34. Nxd5 {[%clk 0:00:07.7]} 34...
Qxd4+ {[%clk 0:00:02.4]} 35. Kc1 {[%clk 0:00:06.4]} 35... c6 {[%clk 0:00:01.5]}
36. Nf6 {[%clk 0:00:04.9]} 36... Qxc3+ {[%clk 0:00:01.4]} 37. bxc3 {[%clk
0:00:05.8]} 37... Bg6 {[%clk 0:00:01.3]} 38. Nxe4 {[%clk 0:00:05.7]} 38... Bxe4
{[%clk 0:00:02.2]} 39. Ra2 {[%clk 0:00:02.8]} 39... b5 {[%clk 0:00:01.6]} 40.
Re1 {[%clk 0:00:03.1]} 40... Bd5 {[%clk 0:00:01.2]} 41. Rd2 {[%clk 0:00:03]}
41... Kg7 {[%clk 0:00:02.1]} 42. Rd4 {[%clk 0:00:02.9]} 42... Nxa3 {[%clk
0:00:02.1]} 43. Rg4+ {[%clk 0:00:02.4]} 43... Kf6 {[%clk 0:00:02.3]} 44. h5
{[%clk 0:00:02.8]} 44... Nc4 {[%clk 0:00:02.4]} 45. h6 {[%clk 0:00:03]} 45...
Ne5 {[%clk 0:00:03]} 46. Rg7 {[%clk 0:00:03]} 46... Nd3+ {[%clk 0:00:03]} 47.
Kd2 {[%clk 0:00:03.1]} 47... Nxe1 {[%clk 0:00:03.9]} 48. Kxe1 {[%clk 0:00:03.7]}
48... Be4 {[%clk 0:00:04.8]} 49. Kd2 {[%clk 0:00:03.9]} 49... a5 {[%clk
0:00:04.8]} 50. Ke3 {[%clk 0:00:03.7]} 50... Bg6 {[%clk 0:00:05.5]} 51. Kxf3
{[%clk 0:00:04]} 51... a4 {[%clk 0:00:06.1]} 52. Ra7 {[%clk 0:00:04.1]} 52...
Ke5 {[%clk 0:00:04.9]} 53. Ke3 {[%clk 0:00:04.3]} 53... Kd5 {[%clk 0:00:05.2]}
54. Kd2 {[%clk 0:00:03.4]} 54... Kc4 {[%clk 0:00:05.8]} 0-1

[Event "Late-Titled-Tuesday-Blitz-July-09-2024"]
[Site "Chess.com"]
[Date "2024.07.09"]
[Round "9"]
[White "ritanovikova"]
[Black "nitpicker"]
[Result "1/2-1/2"]
[WhiteElo "2147"]
[BlackElo "2296"]
[TimeControl "180+1"]
[EndTime "15:44:51 PDT"]
[Termination "Game drawn by repetition"]

1. e4 {[%clk 0:02:58.3]} 1... c5 {[%clk 0:02:59]} 2. Nc3 {[%clk 0:02:58.3]} 2...
a6 {[%clk 0:02:59]} 3. d3 {[%clk 0:02:59.2]} 3... b5 {[%clk 0:02:58.9]} 4. Be3
{[%clk 0:02:58.8]} 4... Qc7 {[%clk 0:02:55.6]} 5. g3 {[%clk 0:02:58.4]} 5... e6
{[%clk 0:02:52.5]} 6. Bg2 {[%clk 0:02:58.4]} 6... Bb7 {[%clk 0:02:52.9]} 7. Nge2
{[%clk 0:02:58.2]} 7... Nf6 {[%clk 0:02:52.9]} 8. O-O {[%clk 0:02:55.4]} 8... b4
{[%clk 0:02:37.1]} 9. Nb1 {[%clk 0:02:53.9]} 9... d5 {[%clk 0:02:36.3]} 10. exd5
{[%clk 0:02:53.4]} 10... Bxd5 {[%clk 0:02:30]} 11. f3 {[%clk 0:02:49.5]} 11...
Be7 {[%clk 0:02:23.4]} 12. Nd2 {[%clk 0:02:47.3]} 12... O-O {[%clk 0:02:18.4]}
13. Ne4 {[%clk 0:02:46.6]} 13... Nbd7 {[%clk 0:02:09.7]} 14. Nf4 {[%clk
0:02:45.8]} 14... Bb7 {[%clk 0:02:05.8]} 15. Qd2 {[%clk 0:02:43.3]} 15... Rfd8
{[%clk 0:02:03.3]} 16. Qf2 {[%clk 0:02:41.6]} 16... Rac8 {[%clk 0:02:01.2]} 17.
Rab1 {[%clk 0:02:35.5]} 17... Nd5 {[%clk 0:01:53.7]} 18. Nxd5 {[%clk 0:02:34.7]}
18... exd5 {[%clk 0:01:50.2]} 19. Ng5 {[%clk 0:02:32]} 19... Bf6 {[%clk
0:01:20]} 20. Bf4 {[%clk 0:02:29.2]} 20... Qa5 {[%clk 0:01:15.3]} 21. c4 {[%clk
0:02:06.8]} 21... Qxa2 {[%clk 0:01:09.6]} 22. cxd5 {[%clk 0:02:02.6]} 22... Qxd5
{[%clk 0:01:03]} 23. Ne4 {[%clk 0:02:00.1]} 23... Bd4 {[%clk 0:01:02.2]} 24. Be3
{[%clk 0:01:58.6]} 24... Ne5 {[%clk 0:00:46.7]} 25. h3 {[%clk 0:01:51]} 25...
Bxe3 {[%clk 0:00:43]} 26. Qxe3 {[%clk 0:01:51.9]} 26... Qxd3 {[%clk 0:00:40.8]}
27. Qf4 {[%clk 0:01:43.7]} 27... Ng6 {[%clk 0:00:35.4]} 28. Qg5 {[%clk 0:01:38]}
28... Bxe4 {[%clk 0:00:32.7]} 29. fxe4 {[%clk 0:01:38.9]} 29... Qd4+ {[%clk
0:00:29.4]} 30. Kh2 {[%clk 0:01:38.3]} 30... Qe5 {[%clk 0:00:25]} 31. Rf5 {[%clk
0:01:36.7]} 31... Qe7 {[%clk 0:00:25]} 32. Qg4 {[%clk 0:01:34.8]} 32... Ne5
{[%clk 0:00:21.1]} 33. Qe2 {[%clk 0:01:32.7]} 33... f6 {[%clk 0:00:19.9]} 34.
Qxa6 {[%clk 0:01:30.9]} 34... Qc7 {[%clk 0:00:15.7]} 35. Qe6+ {[%clk 0:01:29.6]}
35... Kh8 {[%clk 0:00:15.8]} 36. Rbf1 {[%clk 0:01:21.6]} 36... Qd6 {[%clk
0:00:13.1]} 37. Qb3 {[%clk 0:01:20.1]} 37... Qd3 {[%clk 0:00:11.2]} 38. Qa4
{[%clk 0:01:16]} 38... Qe2 {[%clk 0:00:07.4]} 39. R1f2 {[%clk 0:01:10.7]} 39...
Qe3 {[%clk 0:00:07.4]} 40. Qa6 {[%clk 0:01:04]} 40... Rf8 {[%clk 0:00:06.1]} 41.
Qe6 {[%clk 0:01:02.7]} 41... Rce8 {[%clk 0:00:05.1]} 42. Qd5 {[%clk 0:00:59.1]}
42... h6 {[%clk 0:00:05]} 43. Qd6 {[%clk 0:00:46.3]} 43... Rd8 {[%clk 0:00:04]}
44. Qe7 {[%clk 0:00:45.8]} 44... Qd4 {[%clk 0:00:02.8]} 45. Bf3 {[%clk
0:00:41.7]} 45... Qd6 {[%clk 0:00:02.6]} 46. Qb7 {[%clk 0:00:40.9]} 46... Rb8
{[%clk 0:00:02]} 47. Qd5 {[%clk 0:00:38.9]} 47... Qxd5 {[%clk 0:00:01.4]} 48.
exd5 {[%clk 0:00:39.8]} 48... c4 {[%clk 0:00:01.5]} 49. Bd1 {[%clk 0:00:37.8]}
49... Rfd8 {[%clk 0:00:01]} 50. Rd2 {[%clk 0:00:35.4]} 50... Rbc8 {[%clk
0:00:01]} 51. Rf4 {[%clk 0:00:33]} 51... c3 {[%clk 0:00:01.3]} 52. bxc3 {[%clk
0:00:33.2]} 52... bxc3 {[%clk 0:00:01.7]} 53. Rc2 {[%clk 0:00:33.2]} 53... Rc5
{[%clk 0:00:02.2]} 54. Bf3 {[%clk 0:00:32.1]} 54... Nxf3+ {[%clk 0:00:02.2]} 55.
Rxf3 {[%clk 0:00:33]} 55... Rdxd5 {[%clk 0:00:02]} 56. Rfxc3 {[%clk 0:00:32.3]}
56... Rxc3 {[%clk 0:00:02.2]} 57. Rxc3 {[%clk 0:00:32.9]} 57... Rd2+ {[%clk
0:00:02.8]} 58. Kg1 {[%clk 0:00:33.5]} 58... Kh7 {[%clk 0:00:03.3]} 59. h4
{[%clk 0:00:32.3]} 59... h5 {[%clk 0:00:03.6]} 60. Rc5 {[%clk 0:00:32.1]} 60...
Kg6 {[%clk 0:00:03.8]} 61. Ra5 {[%clk 0:00:31.7]} 61... Rb2 {[%clk 0:00:03.8]}
62. Rc5 {[%clk 0:00:31.7]} 62... Rd2 {[%clk 0:00:03.7]} 63. Rb5 {[%clk
0:00:31.7]} 63... Ra2 {[%clk 0:00:03.2]} 64. Rc5 {[%clk 0:00:31.9]} 64... Rd2
{[%clk 0:00:03.1]} 1/2-1/2

[Event "Late-Titled-Tuesday-Blitz-July-09-2024"]
[Site "Chess.com"]
[Date "2024.07.09"]
[Round "9"]
[White "TokChess"]
[Black "AlphaPerseii"]
[Result "1-0"]
[WhiteElo "2574"]
[BlackElo "2386"]
[TimeControl "180+1"]
[EndTime "15:44:57 PDT"]
[Termination "TokChess won by resignation"]

1. c4 {[%clk 0:03:00.9]} 1... e5 {[%clk 0:02:59.7]} 2. b3 {[%clk 0:03:01.2]}
2... Bc5 {[%clk 0:02:45.4]} 3. Bb2 {[%clk 0:03:00.9]} 3... Qe7 {[%clk
0:02:42.6]} 4. e3 {[%clk 0:03:00.5]} 4... d6 {[%clk 0:02:36.8]} 5. Nf3 {[%clk
0:02:57.5]} 5... f5 {[%clk 0:02:32.7]} 6. Be2 {[%clk 0:02:57.2]} 6... Nf6 {[%clk
0:02:31.9]} 7. O-O {[%clk 0:02:56.9]} 7... Bb6 {[%clk 0:02:01.4]} 8. Nc3 {[%clk
0:02:51.8]} 8... Be6 {[%clk 0:01:50.1]} 9. Na4 {[%clk 0:02:42.5]} 9... Nbd7
{[%clk 0:01:46.7]} 10. d4 {[%clk 0:02:41.6]} 10... e4 {[%clk 0:01:30.8]} 11. Ng5
{[%clk 0:02:41.7]} 11... O-O {[%clk 0:01:21]} 12. d5 {[%clk 0:02:40.8]} 12...
Bf7 {[%clk 0:01:20]} 13. Nxb6 {[%clk 0:02:40.7]} 13... axb6 {[%clk 0:01:20]} 14.
Qd4 {[%clk 0:02:30.1]} 14... h6 {[%clk 0:01:18.1]} 15. Nxf7 {[%clk 0:02:29.6]}
15... Rxf7 {[%clk 0:01:16.7]} 16. b4 {[%clk 0:02:25.7]} 16... Qe5 {[%clk
0:00:27.2]} 17. Qd2 {[%clk 0:02:16.2]} 17... Qe7 {[%clk 0:00:25.7]} 18. a3
{[%clk 0:02:16.7]} 18... Ne5 {[%clk 0:00:24.6]} 19. Rae1 {[%clk 0:02:05.9]}
19... Re8 {[%clk 0:00:20]} 20. h3 {[%clk 0:02:01.5]} 20... Nfd7 {[%clk
0:00:19.6]} 21. Qd4 {[%clk 0:01:55.9]} 21... Qg5 {[%clk 0:00:18.9]} 22. Kh1
{[%clk 0:01:55.1]} 22... Qh4 {[%clk 0:00:17.8]} 23. f4 {[%clk 0:01:50]} 23...
Ng4 {[%clk 0:00:12.1]} 24. Kg1 {[%clk 0:01:47.3]} 24... Ngf6 {[%clk 0:00:10.3]}
25. Bc3 {[%clk 0:01:47.2]} 25... Nh5 {[%clk 0:00:08.7]} 26. Rd1 {[%clk 0:01:46]}
26... Qe7 {[%clk 0:00:07.5]} 27. Kh2 {[%clk 0:01:43.6]} 27... Qh4 {[%clk
0:00:06.6]} 28. Be1 {[%clk 0:01:41.7]} 28... Qe7 {[%clk 0:00:06.4]} 29. Rg1
{[%clk 0:01:41.8]} 29... Qf6 {[%clk 0:00:05.3]} 30. Bc3 {[%clk 0:01:38.3]} 30...
Qxd4 {[%clk 0:00:04.9]} 31. Bxd4 {[%clk 0:01:39.2]} 31... Nhf6 {[%clk
0:00:05.1]} 32. g4 {[%clk 0:01:38.8]} 32... fxg4 {[%clk 0:00:03.5]} 33. hxg4
{[%clk 0:01:39.7]} 33... g5 {[%clk 0:00:02.5]} 34. Rdf1 {[%clk 0:01:33.6]} 34...
Kg7 {[%clk 0:00:02.3]} 35. Bd1 {[%clk 0:01:21]} 35... Ra8 {[%clk 0:00:01.8]} 36.
Bb2 {[%clk 0:01:19.9]} 36... Kg6 {[%clk 0:00:02.2]} 37. Bc2 {[%clk 0:01:16.6]}
37... Re8 {[%clk 0:00:02.1]} 38. fxg5 {[%clk 0:01:00]} 38... hxg5 {[%clk
0:00:02.3]} 39. Kg3 {[%clk 0:00:58.5]} 39... Rh8 {[%clk 0:00:01.8]} 40. Rh1
{[%clk 0:00:52.9]} 40... Rxh1 {[%clk 0:00:02]} 41. Rxh1 {[%clk 0:00:52.5]} 41...
Rh7 {[%clk 0:00:02.4]} 42. Rf1 {[%clk 0:00:44.3]} 42... Rf7 {[%clk 0:00:01.7]}
43. Bd4 {[%clk 0:00:31.3]} 43... Re7 {[%clk 0:00:01.6]} 44. a4 {[%clk
0:00:22.7]} 44... Ne5 {[%clk 0:00:02]} 45. Bxe5 {[%clk 0:00:20.3]} 45... Rxe5
{[%clk 0:00:02.2]} 46. Ra1 {[%clk 0:00:18]} 46... Nd7 {[%clk 0:00:02.4]} 47. a5
{[%clk 0:00:18]} 47... bxa5 {[%clk 0:00:02.9]} 48. Rxa5 {[%clk 0:00:18.2]} 48...
Nb6 {[%clk 0:00:03.1]} 49. Bb3 {[%clk 0:00:14.1]} 49... Re7 {[%clk 0:00:03.5]}
50. Ra7 {[%clk 0:00:13.6]} 50... c5 {[%clk 0:00:03.6]} 51. dxc6 {[%clk
0:00:12.7]} 51... Nc8 {[%clk 0:00:03.8]} 52. Rxb7 {[%clk 0:00:12.4]} 52... Kf6
{[%clk 0:00:04.2]} 53. b5 {[%clk 0:00:09.2]} 53... Ke5 {[%clk 0:00:03.7]} 54.
Rxe7+ {[%clk 0:00:07.4]} 54... Nxe7 {[%clk 0:00:04.6]} 55. b6 {[%clk 0:00:08]}
55... Nxc6 {[%clk 0:00:05]} 56. Ba4 {[%clk 0:00:08.3]} 56... Nb8 {[%clk
0:00:05.4]} 57. Bb5 {[%clk 0:00:04.7]} 57... d5 {[%clk 0:00:05.6]} 58. c5 {[%clk
0:00:04.7]} 58... d4 {[%clk 0:00:03.6]} 59. exd4+ {[%clk 0:00:05]} 59... Kxd4
{[%clk 0:00:03.7]} 60. c6 {[%clk 0:00:05.5]} 1-0

[Event "Late-Titled-Tuesday-Blitz-July-09-2024"]
[Site "Chess.com"]
[Date "2024.07.09"]
[Round "9"]
[White "Burgsvik"]
[Black "vova-79"]
[Result "0-1"]
[WhiteElo "2268"]
[BlackElo "2467"]
[TimeControl "180+1"]
[EndTime "15:45:01 PDT"]
[Termination "vova-79 won by resignation"]

1. e4 {[%clk 0:02:56.7]} 1... e6 {[%clk 0:02:58.2]} 2. d4 {[%clk 0:02:56]} 2...
d5 {[%clk 0:02:58.6]} 3. e5 {[%clk 0:02:56.8]} 3... c5 {[%clk 0:02:57.9]} 4. c3
{[%clk 0:02:57.7]} 4... Nc6 {[%clk 0:02:58.1]} 5. a3 {[%clk 0:02:57.5]} 5... Bd7
{[%clk 0:02:59]} 6. b4 {[%clk 0:02:56.9]} 6... cxd4 {[%clk 0:02:58.8]} 7. cxd4
{[%clk 0:02:55.9]} 7... Qb6 {[%clk 0:02:58.9]} 8. Nf3 {[%clk 0:02:55.8]} 8...
Rc8 {[%clk 0:02:57.7]} 9. Be3 {[%clk 0:02:55.1]} 9... Nh6 {[%clk 0:02:56.5]} 10.
Bd3 {[%clk 0:02:54.1]} 10... Nf5 {[%clk 0:02:56.4]} 11. Bxf5 {[%clk 0:02:53.9]}
11... exf5 {[%clk 0:02:56.5]} 12. O-O {[%clk 0:02:54]} 12... Be7 {[%clk
0:02:55.9]} 13. Nc3 {[%clk 0:02:46.7]} 13... Be6 {[%clk 0:02:55.6]} 14. Na4
{[%clk 0:02:45.4]} 14... Qd8 {[%clk 0:02:54.8]} 15. Nc5 {[%clk 0:02:45.4]} 15...
b6 {[%clk 0:02:54.6]} 16. Nxe6 {[%clk 0:02:41.3]} 16... fxe6 {[%clk 0:02:55.5]}
17. Qa4 {[%clk 0:02:40.5]} 17... O-O {[%clk 0:02:53.5]} 18. Rac1 {[%clk
0:02:39.1]} 18... Qd7 {[%clk 0:02:43.7]} 19. Rc2 {[%clk 0:02:31.8]} 19... Nxe5
{[%clk 0:02:18.3]} 20. Qxd7 {[%clk 0:02:29]} 20... Nxd7 {[%clk 0:02:19.2]} 21.
Rfc1 {[%clk 0:02:28.1]} 21... Rxc2 {[%clk 0:02:18.4]} 22. Rxc2 {[%clk
0:02:27.8]} 22... Bd6 {[%clk 0:02:18.9]} 23. Rc6 {[%clk 0:02:25.5]} 23... Bb8
{[%clk 0:02:18.9]} 24. Rxe6 {[%clk 0:02:22.7]} 24... h6 {[%clk 0:02:06.6]} 25.
Re7 {[%clk 0:02:14.6]} 25... Rf7 {[%clk 0:02:06.3]} 26. Re8+ {[%clk 0:02:12.6]}
26... Rf8 {[%clk 0:02:06.5]} 27. Rxf8+ {[%clk 0:02:08.5]} 27... Kxf8 {[%clk
0:01:57.3]} 28. Nh4 {[%clk 0:02:08.7]} 28... f4 {[%clk 0:01:57]} 29. Ng6+ {[%clk
0:02:02.1]} 29... Kf7 {[%clk 0:01:56.3]} 30. Nxf4 {[%clk 0:02:01.3]} 30... Bxf4
{[%clk 0:01:55.2]} 31. Bxf4 {[%clk 0:02:01.3]} 31... b5 {[%clk 0:01:55.8]} 32.
Bd6 {[%clk 0:01:57.2]} 32... a6 {[%clk 0:01:51.5]} 33. f3 {[%clk 0:01:53.3]}
33... Nb6 {[%clk 0:01:51]} 34. Kf2 {[%clk 0:01:42.7]} 34... Nc4 {[%clk
0:01:50.7]} 35. Bc5 {[%clk 0:01:42.8]} 35... Nxa3 {[%clk 0:01:51]} 36. Kg3
{[%clk 0:01:42.8]} 36... Nc4 {[%clk 0:01:45.2]} 37. Kf4 {[%clk 0:01:42.7]} 37...
Kf6 {[%clk 0:01:40.8]} 38. h4 {[%clk 0:01:41.1]} 38... h5 {[%clk 0:01:38.2]} 39.
g4 {[%clk 0:01:40.4]} 39... g6 {[%clk 0:01:38.3]} 40. Ba7 {[%clk 0:01:28]} 40...
a5 {[%clk 0:01:26.3]} 41. bxa5 {[%clk 0:01:27]} 41... Nxa5 {[%clk 0:01:27.2]}
42. Bb6 {[%clk 0:01:25.5]} 42... Nc6 {[%clk 0:01:26.8]} 43. gxh5 {[%clk
0:01:22]} 43... gxh5 {[%clk 0:01:26]} 44. Ke3 {[%clk 0:01:21.2]} 44... Kf5
{[%clk 0:01:24.9]} 45. Bc5 {[%clk 0:01:14.8]} 45... Nd8 {[%clk 0:00:46.3]} 46.
Bd6 {[%clk 0:01:11.5]} 46... Ne6 {[%clk 0:00:44.3]} 47. Kd3 {[%clk 0:01:03.7]}
47... Nf4+ {[%clk 0:00:41.2]} 48. Kc3 {[%clk 0:00:59.9]} 48... Ng6 {[%clk
0:00:39.1]} 49. Bg3 {[%clk 0:00:57.7]} 49... Nf8 {[%clk 0:00:29]} 50. Kb4 {[%clk
0:00:56.2]} 50... Ne6 {[%clk 0:00:29.6]} 51. Be5 {[%clk 0:00:53.9]} 51... Nf4
{[%clk 0:00:24.5]} 52. Kxb5 {[%clk 0:00:51.3]} 52... Ng2 {[%clk 0:00:25.1]} 53.
Bg3 {[%clk 0:00:48]} 53... Ke6 {[%clk 0:00:23.2]} 54. Kc6 {[%clk 0:00:47.3]}
54... Ne3 {[%clk 0:00:23.3]} 55. Be5 {[%clk 0:00:43]} 55... Nf5 {[%clk
0:00:22.6]} 56. Kc5 {[%clk 0:00:33]} 56... Nxh4 {[%clk 0:00:22.3]} 57. Bg3
{[%clk 0:00:32.7]} 57... Nxf3 {[%clk 0:00:22]} 58. Bf2 {[%clk 0:00:26.1]} 58...
h4 {[%clk 0:00:21]} 59. Kb4 {[%clk 0:00:24.6]} 59... h3 {[%clk 0:00:21.2]} 60.
Bg3 {[%clk 0:00:24.4]} 60... Nxd4 {[%clk 0:00:17.3]} 61. Kc5 {[%clk 0:00:20.4]}
61... Nf3 {[%clk 0:00:18.2]} 62. Kb4 {[%clk 0:00:19.6]} 62... h2 {[%clk
0:00:18.1]} 63. Bxh2 {[%clk 0:00:19.2]} 63... Nxh2 {[%clk 0:00:19]} 64. Kc3
{[%clk 0:00:19.4]} 64... Ng4 {[%clk 0:00:19.9]} 65. Kd3 {[%clk 0:00:20.2]} 65...
Nf6 {[%clk 0:00:20.6]} 66. Ke2 {[%clk 0:00:21.1]} 66... Ke5 {[%clk 0:00:20.8]}
67. Kf3 {[%clk 0:00:22]} 67... d4 {[%clk 0:00:20.9]} 68. Ke2 {[%clk 0:00:22.9]}
68... Ke4 {[%clk 0:00:21.4]} 69. Kd2 {[%clk 0:00:22.8]} 69... d3 {[%clk
0:00:22.3]} 70. Kc3 {[%clk 0:00:22.8]} 70... Ke3 {[%clk 0:00:22.4]} 71. Kb2
{[%clk 0:00:22.4]} 71... Ne4 {[%clk 0:00:23.3]} 72. Kc1 {[%clk 0:00:22.2]} 72...
d2+ {[%clk 0:00:24]} 73. Kc2 {[%clk 0:00:22.2]} 73... Nf2 {[%clk 0:00:24.3]} 74.
Kc3 {[%clk 0:00:22.3]} 74... d1=Q {[%clk 0:00:25.2]} 75. Kc4 {[%clk 0:00:22.7]}
75... Qd4+ {[%clk 0:00:25.1]} 76. Kb3 {[%clk 0:00:22.2]} 76... Qc5 {[%clk
0:00:25]} 77. Ka4 {[%clk 0:00:22]} 77... Qb6 {[%clk 0:00:24.7]} 0-1